Workbook

Sheet Menu
A1: This is a farm business decision calculator that has 7 worksheets. There are fields that can be completed by the user. It is up to 24 columns wide and 373 rows.
A2: Welcome to the Machinery Cost Calculator Menu Page
A15: The Machinery Cost Calculator contains a machinery cost calculator, cost charts, a factsheet on machinery
A16: budgeting and a comparison worksheet that compares machinery replacement options including purchase,
A17: repair, lease and custom hire. It also has a simple cash basis lease worksheet.
A19: Developed by John Molenhuis
A20: Business Analysis and Cost of Production Specialist
A21: OMAFRA, Brighton
A22: email: john.molenhuis@ontario.ca
A24: Revised April 2020
A25: End of worksheet

Sheet Factsheets
A2: Budgeting Farm Machinery Costs
A3: by John Molenhuis
A4: Economic Development Division,
A5: Ontario Ministry of Agriculture, Food and Rural Affairs
A7: https://www.publications.gov.on.ca/300228
A14: Lease Agreements, Farm Equipment
A15: by Erich Weber,
A16: Finance and Business Structures Specialist
A17: Economic Development Division,
A18: Ontario Ministry of Agriculture, Food and Rural Affairs
A21: http://www.omafra.gov.on.ca/english/busdev/facts/13-059.htm
A24: End of worksheet

Sheet Calculator
B2: Machinery Cost Calculator
B3: POWER UNIT (TRACTOR OR SELF-PROPELLED MACHINE)
B4: PTO Horsepower | C4: 375 | D4: Self propelled forage harvesters
B5: Life (years) | C5: 5 | D5: Purchase Price | E5: 478000 | Z5: =D4 -> Self propelled forage harvesters | AA5: 2WD tractors | AD5: 2WD tractors
B6: Interest rate | C6: 0.05 | D6: Hours per year | E6: 250 | AA6: FWA tractors | AD6: FWA tractors
B7: Acres/year | C7: 2575 | D7: Fuel Cost per litre | E7: 1 | AA7: 4WD tractors | AD7: 4WD tractors
B8: Acres/hour (see table 5) | C8: 10.3 | D8: Fuel Used -litres/hr (see Table 5) | E8: =C4*0.244 -> 91.5 | AA8: Self Propelled combines | AD8: Self Propelled combines
AA9: Self propelled high clearance sprayer | AD9: Self propelled high clearance sprayer
B10: Annual depreciation rate (%) from Table 3 | C10: =IF(D4<>"",VLOOKUP(D4,DeprRep,4,FALSE),0) -> 6.7 | D10: Annual repair rate (%) from Table 3 | E10: =IF(D4<>"",VLOOKUP(D4,DeprRep,5,FALSE),0) -> 8 | AA10: Self propelled forage harvesters | AD10: Self propelled forage harvesters
B11: Trade in Value** | C11: =IF(C10=0,0,E5-(E5*C10/100*C5)) -> 317870 | AA11: Depreciation
B12: Annual Fixed Cost | AA12: Trade in value
B13: Capital recovery* | AA13: Repairs | AB13: =VLOOKUP(D4,DeprRep,4) -> 6.7
B14: purchase price – trade-in value | D14: =E5-C11 -> 160130
B15: capital recovery factor | C15: x | D15: =(C6*(1+C6)^C5)/((1+C6)^C5-1) -> 0.2309747981
D16: =D14*D15 -> 36985.99442
B17: trade-in value x annual interest rate** | C17: + | D17: =C11*C6 -> 15893.5
B18: Total Capital recovery | E18: =D16+D17 -> 52879.49442
AA19: Headers, grain
B20: Insurance & housing = | D20: purchase price x 1.0 % | E20: =E5*0.01 -> 4780 | AA20: Headers, corn
B21: Total Fixed Cost | E21: =SUM(E18:E20) -> 57659.49442 | F21: (A) | AA21: Grain carts
AA22: Plows, discs
B23: Annual Operating Cost | AA23: Vertical tillage
B24: Fuel & lubricants( Table 5) = | D24: (litres/hour x hr/yr x fuel cost/L x 1.15) | E24: =E8*E6*E7*1.15 -> 26306.25 | AA24: Cultivators, hoes
B25: Repairs = | D25: Annual repair rate x purchase price | E25: =E5*E10/100 -> 38240 | AA25: Harrows
B26: Total Operating Costs | E26: =SUM(E24:E25) -> 64546.25 | F26: (B) | AA26: Drills
B27: Total Power Unit Costs | E27: =SUM(E26,E21) -> 122205.7444 | AA27: Row crop planters
B28: + IMPLEMENT 1 (TILLAGE IMPLEMENT, PTO MACHINE, OTHER) | D28: Balers, round | E28: Group | AA28: Mower/conditioner
D29: Round baler 1,000 lb | E29: Implement
B30: Life (years) | C30: 10 | D30: Purchase Price | E30: 100000 | AA30: Balers, round
B31: Interest rate | C31: 0.05 | AA31: Balers, large square
AA32: Balers, small square
B33: Annual depreciation rate (%) from Table 3 | C33: =IF(D28<>"",VLOOKUP(D28,DeprRep,4,FALSE),0) -> 4.4 | D33: Annual repair rate (%) from Table 3 | E33: =IF(D28<>"",VLOOKUP(D28,DeprRep,5,FALSE),0) -> 1.5 | AA33: Manure spreaders
B34: Trade in Value** | C34: =IF(C33="","",E30-(E30*C33/100*C30)) -> 56000 | AA34: Mower/conditioner
B35: + IMPLEMENT 2 (TILLAGE IMPLEMENT, PTO MACHINE, OTHER) | AA35: Balers, round
E36: Implement
B37: Life (years) | C37: =C30 -> 10 | D37: Purchase Price | E37: 0 | AA37: Balers, large square
B38: Interest rate | C38: =C31 -> 0.05 | AA38: Balers, small square
B39: Acres/hour (see table 5)
AA40: Manure spreaders
B41: Annual depreciation rate (%) from Table 3 | C41: =IF(D35<>"",VLOOKUP(D35,DeprRep,4,FALSE),0) -> 0 | D41: Annual repair rate (%) from Table 3 | E41: =IF(D35<>"",VLOOKUP(D35,DeprRep,5,FALSE),0) -> 0
B42: Trade in Value** | C42: =IF(C41="","",E37-(E37*C41/100*C37)) -> 0
B43: Annual Fixed Cost | AA43: 4–18-in. furrow plow
B44: Capital recovery* | AA44: 6–18-in. furrow plow
B45: purchase price – trade-in value | D45: =(E30-C34)+(E37-C42) -> 44000 | AA45: 8–18-in. furrow plow
B46: capital recovery factor | C46: x | D46: =(C31*(1+C31)^C30)/((1+C31)^C30-1) -> 0.129504575 | AA46: 24-ft field cultivator
D47: =D45*D46 -> 5698.201298 | AA47: 31-ft field cultivator
B48: trade-in value x annual interest rate** | C48: + | D48: =(C34*C31)+(C42*C38) -> 2800 | AA48: 44-ft field cultivator
B49: Capital recovery | E49: =D47+D48 -> 8498.201298 | AA49: 16-ft chisel plow
AA50: 21-ft chisel plow
B51: Insurance & housing = | D51: purchase price x 1% | E51: =(E37+E30)*0.01 -> 1000 | AA51: 24-ft tandem disk
B52: Total Fixed Cost | E52: =SUM(E45:E51) -> 9498.201298 | F52: (C) | AA52: 30-ft tandem disk
AA53: 10-ft offset disk
B54: Annual Operating Cost | AA54: 16-ft offset disk
B55: Repairs = | D55: Annual repair rate x purchase price | E55: =(E30*E33/100)+(E37*E41/100) -> 1500 | AA55: 21-ft vertical tillage
B56: Total Operating costs | E56: =SUM(E54:E55) -> 1500 | F56: (D) | AA56: 30-ft vertical tillage
B57: Total Implement Costs | E57: =SUM(E56,E52) -> 10998.2013 | AA57: 43-ft vertical tillage
B58: = Annual Machinery Costs (A+B+C+D) | E58: =SUM(E57,E27) -> 133203.9457 | F58: (E) | AA58: 12-row strip tillage
B59: Return to Management | C59: 0.15 | D59: Operator Labour (self or hired) per Hour | E59: 22 | AA59: 6R – 30-in. row crop planter
D60: Labour Allowance for Machine travel, downtime | E60: 0.15 | AA60: 12R – 30-in. row crop planter
B61: + Profit Margin (return to management, admin. costs) (suggest 15% of machinery costs ( E x 0.15 ) | E61: =E58*C59 -> 19980.59186 | F61: (F) | AA61: 16R – 30-in. row crop planter
B62: + Operator Labour (self or hired) --- (suggest 15% over machine hr for travel, downtime) # of machinery hr x 1.15 x wage/h | E62: =E6*E59*(1+E60) -> 6325 | F62: (G) | AA62: 6R – 30-in. minimum-till planter
B63: = Total Costs (E+F+G) | E63: =E58+E61+E62 -> 159509.5376 | F63: (H) | AA63: 12R – 30-in. minimum-till planter
B64: = Total cost including return to management and labour | D64: Per Acre | E64: =E63/C7 -> 61.94545149 | AA64: 16R – 30-in. minimum-till planter
D65: Per Hour | E65: =E63/E6 -> 638.0381503 | AA65: 25-ft grain drill
B66: * The capital recovery method estimates the annual depreciation and interest costs. It combines depreciation and | AA66: 35-ft grain drill
B67: interest costs in one calculation. To calculate the capital recovery costs, the capital recovery factor is multiplied by total | AA67: 12-ft presswheel drill
B68: depreciation and adds the result of the trade-in value multiplied by the interest rate. Table 4 provides the capital recovery | AA68: 20-ft presswheel drill
B69: factors for selected combinations of years and interest rates. | AA69: 15-ft no-till drill
B70: ** Trade-in value = purchase price – (purchase price x annual depreciation rate (from Table 3) x number of years owned). | AA70: 20-ft no-till drill
B71: *** Interest: Interest calculation is the average annual interest cost of the investment (yours and/or the lender’s) that is tied | AA71: 90-ft sprayer, pull type
B72: up in the machine. | AA72: 90-ft sprayer, self propelled
AA73: 9-ft mower conditioner
AA74: 13-ft rotary mower/conditioner
B75: Analysis | AA75: Square baler
B76: Fixed cost per acre | D76: =(E52+E21)/C7 -> 26.08065853 | AA76: Round baler 1,000 lb
B77: Operating cost per acre | D77: =(E56+E26)/C7 -> 25.64902913 | AA77: Round baler 1,500 lb
B78: Return to management and labour per acre | D78: =(E61+E62)/C7 -> 10.21576383 | AA78: Large size square baler
B79: Total cost per acre | D79: =SUM(D76:D78) -> 61.94545149 | AA79: Round baler 1,000 lb/wrapper
B80: Fixed cost per hour | D80: =(E52+E21)/E6 -> 268.6307829 | AA80: 2-row forage harvester
B81: Operating cost per hour | D81: =(E56+E26)/E6 -> 264.185 | AA81: Self-propelled forage harvester, 6 row, 15 ft
B82: Return to management and labour per hour | D82: =(E61+E62)/E6 -> 105.2223674 | AA82: Large forage blower
B83: Total cost per hour | D83: =SUM(D80:D82) -> 638.0381503 | AA83: 6R – 30-in. corn hd
AA84: 12R – 30-in. corn hd
AA85: Grain head 25 ft
B86: End of worksheet | AA86: Grain head 35 ft

Sheet Cost Charts
B1: Tables 4 and 5 scroll right
B3: Table 3, Annual hours of use, optimal life, depreciation and repair rates | H3: Table 4. Capital recovery factors | X3: TABLE 5. Performance, Horsepower and Fuel Requirements of Selected Farm Equipment
B4: Machine | C4: Annual Use (hours) | D4: Optimal Life (years) | E4: Annual Depreciation Rate (% of purchase price) | F4: Annual Repair Rate (% of purchase price) | I4: Interest rate | Y4: PTO HP(1,2) | Z4: Acres/hour(2) | AA4: Litres/acre | AB4: Litres/hour(3)
B5: 2WD tractors | C5: 300 | D5: 20 | E5: 3.3 | F5: 2.2 | H5: Year | I5: 0.02 | J5: 0.03 | K5: 0.04 | L5: 0.05 | M5: 0.06 | N5: 0.07 | O5: 0.08 | P5: 0.09 | Q5: 0.1 | R5: 0.11 | S5: 0.12 | T5: 0.13 | U5: 0.14 | V5: 0.15 | X5: 4–18-in. furrow plow | Y5: 75 | Z5: 2.8 | AA5: 6.5 | AB5: 18.3
B6: FWA tractors | C6: 450 | D6: 15 | E6: 4.4 | F6: 2.6 | H6: 1 | I6: 1.02 | J6: 1.03 | K6: 1.04 | L6: 1.05 | M6: 1.06 | N6: 1.07 | O6: 1.08 | P6: 1.09 | Q6: 1.1 | R6: 1.11 | S6: 1.12 | T6: 1.13 | U6: 1.14 | V6: 1.15 | X6: 6–18-in. furrow plow | Y6: 140 | Z6: 3 | AA6: 11.4 | AB6: 34.2
B7: 4WD tractors | C7: 450 | D7: 15 | E7: 4.4 | F7: 2.5 | H7: 2 | I7: 0.515 | J7: 0.523 | K7: 0.53 | L7: 0.538 | M7: 0.545 | N7: 0.553 | O7: 0.561 | P7: 0.568 | Q7: 0.576 | R7: 0.584 | S7: 0.592 | T7: 0.599 | U7: 0.607 | V7: 0.615 | X7: 8–18-in. furrow plow | Y7: 250 | Z7: 5.6 | AA7: 10.9 | AB7: 61.1
B8: Self Propelled combines | C8: 250 | D8: 12 | E8: 5.6 | F8: 2.5 | H8: 3 | I8: 0.347 | J8: 0.354 | K8: 0.36 | L8: 0.367 | M8: 0.374 | N8: 0.381 | O8: 0.388 | P8: 0.395 | Q8: 0.402 | R8: 0.409 | S8: 0.416 | T8: 0.424 | U8: 0.431 | V8: 0.438 | X8: 24-ft field cultivator | Y8: 140 | Z8: 9 | AA8: 3.8 | AB8: 34.2
B9: Headers, grain | C9: 250 | D9: 15 | E9: 4.4 | F9: 2.5 | H9: 4 | I9: 0.263 | J9: 0.269 | K9: 0.275 | L9: 0.282 | M9: 0.289 | N9: 0.295 | O9: 0.302 | P9: 0.309 | Q9: 0.315 | R9: 0.322 | S9: 0.329 | T9: 0.336 | U9: 0.343 | V9: 0.35 | X9: 31-ft field cultivator | Y9: 225 | Z9: 20.6 | AA9: 2.7 | AB9: 55
B10: Headers, corn | C10: 100 | D10: 15 | E10: 4.4 | F10: 2.8 | H10: 5 | I10: 0.212 | J10: 0.218 | K10: 0.225 | L10: 0.231 | M10: 0.237 | N10: 0.244 | O10: 0.25 | P10: 0.257 | Q10: 0.264 | R10: 0.271 | S10: 0.277 | T10: 0.284 | U10: 0.291 | V10: 0.298 | X10: 44-ft field cultivator | Y10: 270 | Z10: 29.1 | AA10: 2.3 | AB10: 66
B11: Grain carts | C11: 250 | D11: 20 | E11: 3.3 | F11: 2 | H11: 6 | I11: 0.179 | J11: 0.185 | K11: 0.191 | L11: 0.197 | M11: 0.203 | N11: 0.21 | O11: 0.216 | P11: 0.223 | Q11: 0.23 | R11: 0.236 | S11: 0.243 | T11: 0.25 | U11: 0.257 | V11: 0.264 | X11: 16-ft chisel plow | Y11: 155 | Z11: 9 | AA11: 4.2 | AB11: 37.9
B12: Plows, discs | C12: 100 | D12: 20 | E12: 3.3 | F12: 1.5 | H12: 7 | I12: 0.155 | J12: 0.161 | K12: 0.167 | L12: 0.173 | M12: 0.179 | N12: 0.186 | O12: 0.192 | P12: 0.199 | Q12: 0.205 | R12: 0.212 | S12: 0.219 | T12: 0.226 | U12: 0.233 | V12: 0.24 | X12: 21-ft chisel plow | Y12: 240 | Z12: 12.6 | AA12: 4.7 | AB12: 58.6
B13: Vertical tillage | C13: 100 | D13: 20 | E13: 3.3 | F13: 3.5 | H13: 8 | I13: 0.137 | J13: 0.142 | K13: 0.149 | L13: 0.155 | M13: 0.161 | N13: 0.167 | O13: 0.174 | P13: 0.181 | Q13: 0.187 | R13: 0.194 | S13: 0.201 | T13: 0.208 | U13: 0.216 | V13: 0.223 | X13: 24-ft tandem disk | Y13: 150 | Z13: 15.1 | AA13: 2.4 | AB13: 36.7
B14: Cultivators, hoes | C14: 200 | D14: 20 | E14: 3.3 | F14: 1.5 | H14: 9 | I14: 0.123 | J14: 0.128 | K14: 0.134 | L14: 0.141 | M14: 0.147 | N14: 0.153 | O14: 0.16 | P14: 0.167 | Q14: 0.174 | R14: 0.181 | S14: 0.188 | T14: 0.195 | U14: 0.202 | V14: 0.21 | X14: 30-ft tandem disk | Y14: 225 | Z14: 15.3 | AA14: 3.6 | AB14: 55
B15: Harrows | C15: 200 | D15: 25 | E15: 2.7 | F15: 0.5 | H15: 10 | I15: 0.111 | J15: 0.117 | K15: 0.123 | L15: 0.13 | M15: 0.136 | N15: 0.142 | O15: 0.149 | P15: 0.156 | Q15: 0.163 | R15: 0.17 | S15: 0.177 | T15: 0.184 | U15: 0.192 | V15: 0.199 | X15: 10-ft offset disk | Y15: 110 | Z15: 6 | AA15: 4.5 | AB15: 26.9
B16: Drills | C16: 200 | D16: 15 | E16: 4.4 | F16: 3 | H16: 11 | I16: 0.102 | J16: 0.108 | K16: 0.114 | L16: 0.12 | M16: 0.127 | N16: 0.133 | O16: 0.14 | P16: 0.147 | Q16: 0.154 | R16: 0.161 | S16: 0.168 | T16: 0.176 | U16: 0.183 | V16: 0.191 | X16: 16-ft offset disk | Y16: 155 | Z16: 9.6 | AA16: 3.9 | AB16: 37.9
B17: Row crop planters | C17: 100 | D17: 10 | E17: 6.7 | F17: 4 | H17: 12 | I17: 0.095 | J17: 0.1 | K17: 0.107 | L17: 0.113 | M17: 0.119 | N17: 0.126 | O17: 0.133 | P17: 0.14 | Q17: 0.147 | R17: 0.154 | S17: 0.161 | T17: 0.169 | U17: 0.177 | V17: 0.184 | X17: 21-ft vertical tillage | Y17: 190 | Z17: 19.6 | AA17: 2.4 | AB17: 46.4
B18: Self propelled high clearance sprayer | C18: 200 | D18: 8 | E18: 8.3 | F18: 3.5 | H18: 13 | I18: 0.088 | J18: 0.094 | K18: 0.1 | L18: 0.106 | M18: 0.113 | N18: 0.12 | O18: 0.127 | P18: 0.134 | Q18: 0.141 | R18: 0.148 | S18: 0.156 | T18: 0.163 | U18: 0.171 | V18: 0.179 | X18: 30-ft vertical tillage | Y18: 270 | Z18: 27.2 | AA18: 2.4 | AB18: 66
B19: Mower/conditioner | C19: 150 | D19: 15 | E19: 4.4 | F19: 2.3 | H19: 14 | I19: 0.083 | J19: 0.089 | K19: 0.095 | L19: 0.101 | M19: 0.108 | N19: 0.114 | O19: 0.121 | P19: 0.128 | Q19: 0.136 | R19: 0.143 | S19: 0.151 | T19: 0.159 | U19: 0.167 | V19: 0.175 | X19: 43-ft vertical tillage | Y19: 370 | Z19: 39.2 | AA19: 2.3 | AB19: 90.4
B20: Balers, round | C20: 100 | D20: 15 | E20: 4.4 | F20: 1.5 | H20: 15 | I20: 0.078 | J20: 0.084 | K20: 0.09 | L20: 0.096 | M20: 0.103 | N20: 0.11 | O20: 0.117 | P20: 0.124 | Q20: 0.131 | R20: 0.139 | S20: 0.147 | T20: 0.155 | U20: 0.163 | V20: 0.171 | X20: 12-row strip tillage | Y20: 290 | Z20: 17.5 | AA20: 4 | AB20: 70.9
B21: Balers, large square | C21: 150 | D21: 15 | E21: 4.4 | F21: 1.7 | H21: 16 | I21: 0.074 | J21: 0.08 | K21: 0.086 | L21: 0.092 | M21: 0.099 | N21: 0.106 | O21: 0.113 | P21: 0.12 | Q21: 0.128 | R21: 0.136 | S21: 0.143 | T21: 0.151 | U21: 0.16 | V21: 0.168 | X21: 6R – 30-in. row crop planter | Y21: 95 | Z21: 7.6 | AA21: 3.1 | AB21: 23.2
B22: Balers, small square | C22: 100 | D22: 20 | E22: 3.3 | F22: 1 | H22: 17 | I22: 0.07 | J22: 0.076 | K22: 0.082 | L22: 0.089 | M22: 0.095 | N22: 0.102 | O22: 0.11 | P22: 0.117 | Q22: 0.125 | R22: 0.132 | S22: 0.14 | T22: 0.149 | U22: 0.157 | V22: 0.165 | X22: 12R – 30-in. row crop planter | Y22: 140 | Z22: 15.3 | AA22: 2.2 | AB22: 34.2
B23: Self propelled forage harvesters | C23: 400 | D23: 10 | E23: 6.7 | F23: 8 | H23: 18 | I23: 0.067 | J23: 0.073 | K23: 0.079 | L23: 0.086 | M23: 0.092 | N23: 0.099 | O23: 0.107 | P23: 0.114 | Q23: 0.122 | R23: 0.13 | S23: 0.138 | T23: 0.146 | U23: 0.155 | V23: 0.163 | X23: 16R – 30-in. row crop planter | Y23: 155 | Z23: 20.4 | AA23: 1.9 | AB23: 37.9
B24: Manure spreaders | C24: 100 | D24: 10 | E24: 6.7 | F24: 4.4 | H24: 19 | I24: 0.064 | J24: 0.07 | K24: 0.076 | L24: 0.083 | M24: 0.09 | N24: 0.097 | O24: 0.104 | P24: 0.112 | Q24: 0.12 | R24: 0.128 | S24: 0.136 | T24: 0.144 | U24: 0.153 | V24: 0.161 | X24: 6R – 30-in. minimum-till planter | Y24: 75 | Z24: 6.4 | AA24: 2.9 | AB24: 18.3
B25: Source: Farm Machinery Custom and Rental Rate Guide, Saskatchewan Ministry of Agriculture, 2018–19. | H25: 20 | I25: 0.061 | J25: 0.067 | K25: 0.074 | L25: 0.08 | M25: 0.087 | N25: 0.094 | O25: 0.102 | P25: 0.11 | Q25: 0.117 | R25: 0.126 | S25: 0.134 | T25: 0.142 | U25: 0.151 | V25: 0.16 | X25: 12R – 30-in. minimum-till planter | Y25: 155 | Z25: 15.3 | AA25: 2.5 | AB25: 37.9
H26: Source: Estimating Farm Machinery Costs, Edwards, William, Iowa State University, 2015. | X26: 16R – 30-in. minimum-till planter | Y26: 225 | Z26: 20.4 | AA26: 2.7 | AB26: 55
X27: 25-ft grain drill | Y27: 140 | Z27: 11.7 | AA27: 2.9 | AB27: 34.2
H28: Tractor example using Table 3 and 4: | X28: 35-ft grain drill | Y28: 225 | Z28: 16.3 | AA28: 3.4 | AB28: 55
I29: 310 Horsepower (HP) Four Wheel Drive (4WD) Tractor | X29: 12-ft presswheel drill | Y29: 75 | Z29: 5.1 | AA29: 3.6 | AB29: 18.3
B30: EXAMPLE | C30: Accumulated Repair Cost Calculation | H30: Purchase price | I30: 470000 | X30: 20-ft presswheel drill | Y30: 140 | Z30: 8.5 | AA30: 4 | AB30: 34.2
B31: New 375 HP Combine Cost | C31: $660,000 = $478,000 (combine) + $ 122,000 (corn head) + $60,000 (grain head) | H31: Projected use | I31: 450 hr per year for 5 years | X31: 15-ft no-till drill | Y31: 140 | Z31: 7 | AA31: 4.9 | AB31: 34.2
B32: Estimated annual repair rates | C32: 2.5% combine | H32: Depreciaton | I32: Estimated total depreciation over the 5 years: | X32: 20-ft no-till drill | Y32: 175 | Z32: 9.3 | AA32: 4.6 | AB32: 42.8
C33: 2.8% corn head | I33: = 4.4% annual depreciation rate (from Table 3, 4WD tractors) x 5 years x $470,000 = $103,400 total depreciation | X33: 90-ft sprayer, pull type | Y33: 95 | Z33: 49.6 | AA33: 0.5 | AB33: 23.2
B34: from Table 3 | C34: 2.5% grain head | H34: Trade-in value | I34: = $470,000 (purchase price) – $103,400 (total depreciation) = $366,600 | X34: 90-ft sprayer, self propelled | Y34: 85 | Z34: 72.5 | AA34: 0.3 | AB34: 20.8
B35: Estimated annual repair costs | C35: Combine: $478,000 x 2.5% for an average of $11,950/year | X35: 9-ft mower conditioner | Y35: 40 | Z35: 4.4 | AA35: 2.2 | AB35: 9.8
C36: Corn head: $122,000 x 2.8% for an average of $3,416/year | H36: Capital recovery: | X36: 13-ft rotary mower/conditioner | Y36: 75 | Z36: 9.7 | AA36: 1.9 | AB36: 18.3
C37: Grain head: $60,000 x 2.5% for an average of 1,500/year | I37: = (total depreciation x capital recovery factor)+ (trade-in value x interest rate) | X37: Square baler | Y37: 40 | Z37: 4.4 | AA37: 2.2 | AB37: 9.8
C38: Total annual repair costs = $11,950 + $3,416 + $1,500 = $16,866 per year | I38: = ($103,400 x 0.218 (from Table 5, 3% interest and 5 years)) + ($366,600 x 3%) | X38: Round baler 1,000 lb | Y38: 60 | Z38: 3 | AA38: 4.9 | AB38: 14.7
B39: Used Machinery | C39: When calculating the depreciation on used machinery, use the actual price paid | I39: = $22,541 + $10,998 | X39: Round baler 1,500 lb | Y39: 60 | Z39: 4 | AA39: 3.7 | AB39: 14.7
C40: for the machine minus its expected trade-in or salvage value, divided by the | I40: = $33,539 per year capital recovery (depreciation and interest costs). | X40: Large size square baler | Y40: 140 | Z40: 16.3 | AA40: 2.1 | AB40: 34.2
C41: expected life of the machine on your farm. Increase repair rates to levels | X41: Round baler 1,000 lb/wrapper | Y41: 60 | Z41: 3 | AA41: 4.9 | AB41: 14.7
C42: appropriate for the age or number of hours on the machine. Expect to have | X42: 2-row forage harvester | Y42: 140 | Z42: 1.4 | AA42: 24.4 | AB42: 34.2
C43: higher than normal repair expenses in the first year of ownership of a | X43: Self-propelled forage harvester, 6 row, 15 ft | Y43: 625 | Z43: 5.1 | AA43: 11.2 | AB43: 56.8
C44: used machine as you bring it back into top operating shape | X44: Large forage blower | Y44: 60 | Z44: — | AA44: — | AB44: 14.7
X45: Combine 6R – 30-in. corn hd | Y45: 275 | Z45: 5.1 | AA45: 13.2 | AB45: 67.2
X46: Combine 12R – 30-in. corn hd | Y46: 375 | Z46: 10.2 | AA46: 9 | AB46: 91.6
X47: Combine grain head 25 ft | Y47: 375 | Z47: 7.4 | AA47: 12.4 | AB47: 91.6
X48: Combine grain head 35 ft | Y48: 375 | Z48: 10.4 | AA48: 8.8 | AB48: 91.6
B49: End of worksheet | H49: End of worksheet | X49: 1. Power take off horsepower
X50: 2. Source: Illinois Machinery Cost Estimates for 2019, University of Illinois, Department of Agricultural and Consumer Economics, 2019.
X51: 3. Source: Nebraska Tractor Test Laboratory, 2008–2017. Tractor fuel consumption results.
X54: End of worksheet

Sheet Comparison
B1: Machinery Cost Comparison Calculator
B2: Type of Machine
C3: New | D3: Used | E3: Repair | F3: Lease | G3: Custom
B4: New Price (or Value of your current) | C4: 175000 | D4: 100000 | E4: 35000 | F4: 175000 | G4: 0
B5: Value of the machine on future sale (end of lease) | C5: =C4*0.32 -> 56000 | D5: 25000 | E5: 15000 | F5: 65000
B6: Trade in Value of your current machine (or sale in cust. work) | C6: 35000 | D6: 35000 | E6: 0 | F6: 35000 | G6: 35000
B7: Life of the machine (years) | C7: 15 | D7: 6 | E7: 3 | F7: 5 | G7: 0
B8: Hours on machine when purchased | C8: 0 | D8: 2000 | E8: 2000 | F8: 0
B9: Acres per Year | C9: 1200 | D9: 1200 | E9: 1200 | F9: 1200 | G9: 1200
B10: Hours per year / and Total Hours | C10: =C9/C12 -> 285.7142857 | D10: =D9/D12 -> 285.7142857 | E10: =E9/E12 -> 285.7142857 | F10: =F9/F12 -> 285.7142857
B11: Accumulated Total Hours over Life | C11: =C10*C7 -> 4285.714286 | D11: =(D10*D7)+D8 -> 3714.285714 | E11: =(E10*E7)+E8 -> 2857.142857 | F11: =(F10*F7)+F8 -> 1428.571429
B12: Rate of Work (acres per hour) Optional entry | C12: 4.2 | D12: 4.2 | E12: 4.2 | F12: 4.2
C13: New | D13: Used | E13: Repair | F13: Lease | G13: Custom
B14: Fuel Cost per litre | C14: 0.5 | D14: 0.5 | E14: 0.5 | F14: 0.5 | G14: Rate
B15: Fuel Use per Hour (litres) | C15: 40 | D15: 40 | E15: 40 | F15: 40 | G15: per acre
B16: Annual Repair Costs | C16: =C17/C7 -> 1085 | D16: =D17/D7 -> 5250 | E16: =E17/E7 -> 7500 | F16: =F17/F7 -> 3255 | G16: 34
B17: Total Repairs over machines life | C17: =C4*C18/100 -> 16275 | D17: 31500 | E17: =22500 -> 22500 | F17: =F4*F18/100 -> 16275
B18: Repairs as a % the purchase price | C18: 9.3 | D18: 21 | E18: 15 | F18: =9.3 -> 9.3
B19: Down Payment | C19: 5000 | D19: 5000 | E19: 0 | F19: 5000
B20: Loan Amount Required | C20: =(C4-C6-C19) -> 135000 | D20: =(D4-D6-D19) -> 60000
B21: Interest Expense (total) | C21: 28618 | D21: 12719
B22: Annual Loan Payments (or Lease) | C22: 40904 | D22: 18179 | E22: 0 | F22: 29325
B23: Discount rate (if you put your money elsewhere) | C23: 0.06 | D23: 0.06 | E23: 0.06 | F23: 0.06 | G23: 0.06
B24: Annual Fixed Costs | C24: New | D24: Used | E24: Repair | F24: Lease | G24: Custom
B25: Average Depreciation per year | C25: =(C4-C5)/C7 -> 7933.333333 | D25: =(D4-D5)/D7 -> 12500 | E25: =(E4-E5)/E7 -> 6666.666667 | F25: =(F4-F5)/F7 -> 22000
B26: Interest on Your Investment (income for custom) | C26: =(C4+C6)/2*C23 -> 6300 | D26: =(D4+D6)/2*D23 -> 4050 | E26: =(E4+E6)/2*E23 -> 1050 | F26: =(F4+F6)/2*F23 -> 6300 | G26: =G23*G6 -> 2100
B27: Insurance and Housing | C27: =C4*0.015 -> 2625 | D27: =D4*0.015 -> 1500 | E27: =E4*0.015 -> 525 | F27: =F4*0.015 -> 2625
B28: Total Fixed Costs | C28: =SUM(C25:C27) -> 16858.33333 | D28: =SUM(D25:D27) -> 18050 | E28: =SUM(E25:E27) -> 8241.666667 | F28: =SUM(F25:F27) -> 30925
B29: Annual Operating Costs
B30: Fuel and Lubricants | C30: =C15*C10*C14*1.15 -> 6571.428571 | D30: =D15*D10*D14*1.15 -> 6571.428571 | E30: =E15*E10*E14*1.15 -> 6571.428571 | F30: =F15*F10*F14*1.15 -> 6571.428571
B31: Repairs | C31: =C16 -> 1085 | D31: =D16 -> 5250 | E31: =E16 -> 7500 | F31: =F16 -> 3255
B32: Labour | C32: 0 | D32: 0 | E32: 0 | F32: 0
B33: Total Operating Costs | C33: =SUM(C30:C32) -> 7656.428571 | D33: =SUM(D30:D32) -> 11821.42857 | E33: =SUM(E30:E32) -> 14071.42857 | F33: =SUM(F30:F32) -> 9826.428571
B34: Total Annual Costs | C34: =C33+C28 -> 24514.7619 | D34: =D33+D28 -> 29871.42857 | E34: =E33+E28 -> 22313.09524 | F34: =F33+F28 -> 40751.42857 | G34: =(G16*1200)-G26 -> 38700
B35: Total Annual Costs Per Acre | C35: =C34/C9 -> 20.42896825 | D35: =D34/D9 -> 24.89285714 | E35: =E34/E9 -> 18.59424603 | F35: =F34/F9 -> 33.95952381 | G35: =G34/G9 -> 32.25
B37: Annual Cash Costs | C37: New | D37: Used | E37: Repair | F37: Lease | G37: Custom
B38: Annual Payments on Loan | C38: =C22 -> 40904 | D38: =D22 -> 18179 | E38: =E22 -> 0 | F38: =F22 -> 29325
B39: Down Payment X Interest Rate | C39: =C19*C23 -> 300 | D39: =D19*D23 -> 300 | E39: =E19*E23 -> 0 | F39: =F19*F23 -> 300
B40: Total Operating Costs | C40: =C33 -> 7656.428571 | D40: =D33 -> 11821.42857 | E40: =E33 -> 14071.42857 | F40: =F33 -> 9826.428571
B41: Total Pre Tax Cash Costs | C41: =SUM(C38:C40) -> 48860.42857 | D41: =SUM(D38:D40) -> 30300.42857 | E41: =SUM(E38:E40) -> 14071.42857 | F41: =SUM(F38:F40) -> 39451.42857 | G41: =G16*G9 -> 40800
B42: Cash Costs Per Acre | C42: =C41/C9 -> 40.71702381 | D42: =D41/D9 -> 25.25035714 | E42: =E41/E9 -> 11.72619048 | F42: =F41/F9 -> 32.87619048 | G42: =G16 -> 34
B43: After Tax Calculations | C43: New | D43: Used | E43: Repair | F43: Lease | G43: Custom
B44: Tax Rate | C44: 0.41 | D44: 0.41 | E44: 0.41 | F44: 0.41 | G44: 0.41
B45: Capital Cost Allowance Rate | C45: 0.3 | D45: 0.3 | E45: 0.3
B46: Tax Deductable Expenses
B47: Average Capital Cost Allowance per year | C47: =VLOOKUP(C7,$B$66:$H$81,3,FALSE)/C7 -> 11599.40955 | D47: =VLOOKUP(D7,$B$66:$H$81,5,FALSE)/D7 -> 14285.675 | E47: =VLOOKUP(E7,$B$66:$H$81,7,FALSE)/E7 -> 6807.5
B48: Interest Expense per Year (average) | C48: =C21/C7 -> 1907.866667 | D48: =D21/D7 -> 2119.833333 | E48: =E21/E7 -> 0 | F48: =F21/F7 -> 0
B49: Fuel, lubricants and repair expenses | C49: =C30+C31 -> 7656.428571 | D49: =D30+D31 -> 11821.42857 | E49: =E30+E31 -> 14071.42857 | F49: =F30+F31 -> 9826.428571 | G49: =G30+G31 -> 0
B50: Lease Payments | F50: =F38 -> 29325
B51: Custom Work Expense | G51: =G16*G9 -> 40800
B52: Total Tax deductable expenses | C52: =SUM(C47:C51) -> 21163.70478 | D52: =SUM(D47:D51) -> 28226.9369 | E52: =SUM(E47:E51) -> 20878.92857 | F52: =SUM(F47:F51) -> 39151.42857 | G52: =SUM(G47:G51) -> 40800
B53: Tax Reduction | C53: =C52*C44 -> 8677.118961 | D53: =D52*D44 -> 11573.04413 | E53: =E52*E44 -> 8560.360714 | F53: =F52*F44 -> 16052.08571 | G53: =G52*G44 -> 16728
B54: Per acre tax reduction | C54: =C53/C9 -> 7.230932468 | D54: =D53/D9 -> 9.644203442 | E54: =E53/E9 -> 7.133633929 | F54: =F53/F9 -> 13.3767381 | G54: =G53/G9 -> 13.94
B55: After Tax Cost Per Acre | C55: =C42-C54 -> 33.48609134 | D55: =D42-D54 -> 15.6061537 | E55: =E42-E54 -> 4.592556548 | F55: =F42-F54 -> 19.49945238 | G55: =G42-G54 -> 20.06
B57: CCA Calculations are below
B65: CCA Calculations
B66: Start | C66: =+C4 -> 175000 | E66: =+D4 -> 100000 | G66: =+E4 -> 35000
B67: 1 | C67: =C66-C83 -> 148750 | D67: =$C$66-C67 -> 26250 | E67: =E66-D83 -> 85000 | F67: =$E$66-E67 -> 15000 | G67: =G66-E83 -> 29750 | H67: =$G$66-G67 -> 5250
B68: 2 | C68: 104125 | D68: =$C$66-C68 -> 70875 | E68: 59500 | F68: =$E$66-E68 -> 40500 | G68: 20825 | H68: =$G$66-G68 -> 14175
B69: 3 | C69: 72887.5 | D69: 102112.5 | E69: 41650 | F69: 58350 | G69: 14577.5 | H69: 20422.5
B70: 4 | C70: 51021.25 | D70: 123978.75 | E70: 29155 | F70: 70845 | G70: 10204.25 | H70: 24795.75
B71: 5 | C71: 35714.875 | D71: 139285.125 | E71: 20408.5 | F71: 79591.5 | G71: 7142.975 | H71: 27857.025
B72: 6 | C72: 25000.4125 | D72: 149999.5875 | E72: 14285.95 | F72: 85714.05 | G72: 5000.0825 | H72: 29999.9175
B73: 7 | C73: 17500.28875 | D73: 157499.7112 | E73: 10000.165 | F73: 89999.835 | G73: 3500.05775 | H73: 31499.94225
B74: 8 | C74: 12250.20212 | D74: 162749.7979 | E74: 7000.1155 | F74: 92999.8845 | G74: 2450.040425 | H74: 32549.95958
B75: 9 | C75: 8575.141488 | D75: 166424.8585 | E75: 4900.08085 | F75: 95099.91915 | G75: 1715.028298 | H75: 33284.9717
B76: 10 | C76: 6002.599041 | D76: 168997.401 | E76: 3430.056595 | F76: 96569.9434 | G76: 1200.519808 | H76: 33799.48019
B77: 11 | C77: =C76-C93 -> 4201.819329 | D77: 170798.1807 | E77: =E76-D93 -> 2401.039617 | F77: 97598.96038 | G77: =G76-E93 -> 840.3638658 | H77: 34159.63613
B78: 12 | C78: 2941.27353 | D78: 172058.7265 | E78: 1680.727732 | F78: 98319.27227 | G78: 588.254706 | H78: 34411.74529
B79: 13 | C79: 2058.891471 | D79: 172941.1085 | E79: 1176.509412 | F79: 98823.49059 | G79: 411.7782942 | H79: 34588.22171
B80: 14 | C80: 1441.22403 | D80: 173558.776 | E80: 823.5565885 | F80: 99176.44341 | G80: 288.244806 | H80: 34711.75519
B81: 15 | C81: 1008.856821 | D81: 173991.1432 | E81: 576.4896119 | F81: 99423.51039 | G81: 201.7713642 | H81: 34798.22864
B82: Deductions
B83: Year 1 | C83: =0.5*C45*C66 -> 26250 | D83: =0.5*D45*E66 -> 15000 | E83: =0.5*E45*G66 -> 5250
B84: Year 2 | C84: =C45*C67 -> 44625 | D84: =D45*E67 -> 25500 | E84: =E45*G67 -> 8925
B85: Year 3 | C85: =C45*C68 -> 31237.5 | D85: =D45*E68 -> 17850 | E85: =E45*G68 -> 6247.5
B86: Year 4 | C86: =C45*C69 -> 21866.25 | D86: =D45*E69 -> 12495 | E86: =E45*G69 -> 4373.25
B87: Year 5 | C87: =$C$45*C70 -> 15306.375 | D87: =D45*E70 -> 8746.5 | E87: =E45*G70 -> 3061.275
B88: Year 6 | C88: 10714.4625 | D88: =$C$45*E71 -> 6122.55 | E88: =$C$45*G71 -> 2142.8925
B89: Year 7 | C89: 7500.12375 | D89: =$C$45*E72 -> 4285.785 | E89: =$C$45*G72 -> 1500.02475
B90: Year 8 | C90: 5250.086625 | D90: =$C$45*E73 -> 3000.0495 | E90: =$C$45*G73 -> 1050.017325
B91: Year 9 | C91: 3675.060637 | D91: =$C$45*E74 -> 2100.03465 | E91: =$C$45*G74 -> 735.0121275
B92: Year 10 | C92: 2572.542446 | D92: =$C$45*E75 -> 1470.024255 | E92: =$C$45*G75 -> 514.5084893
B93: Year 11 | C93: 1800.779712 | D93: =$C$45*E76 -> 1029.016979 | E93: =$C$45*G76 -> 360.1559425
B94: Year 12 | C94: 1260.545799 | D94: 720.311885 | E94: 252.1091597
B95: Year 13 | C95: 882.3820591 | D95: 504.2183195 | E95: 176.4764118
B96: Year 14 | C96: 617.6674413 | D96: 352.9528236 | E96: 123.5334883
B97: Year 15 | C97: 432.3672089 | D97: 247.0669765 | E97: 86.47344179
B99: Total for 5 Years | C99: =SUM(C83:C87) -> 139285.125 | D99: =SUM(D83:D87) -> 79591.5 | E99: =SUM(E83:E87) -> 27857.025
B100: Average Deduction | C100: =C99/5 -> 27857.025 | D100: =D99/5 -> 15918.3 | E100: =E99/5 -> 5571.405

Sheet Loan
C1: Payment Schedule | H1: Interim Totals for Principal, Interest and Total Payments
F2: PAYMENT
A3: LOAN AMOUNT ($) | D3: 60000 | F3: =IF(AND(AND(AND(AND(D5>=1,D6>=1),D7>=1),D3>=0),D4>=0),IF(D4=0,D3/D5/D6,((1+(D4/(D7*100)))^(D7/D6)-1)/(1-((1/(1+((1+(D4/(D7*100)))^(D7/D6)-1))^(D6*D5))))*D3),#VALUE!) -> 13882.43973 | H3: Starting with payment number: | K3: 1
A4: ANNUAL INTEREST RATE % | D4: 5 | F4: Scheduled Interest | H4: and ending with payment number: | K4: 12
A5: LENGTH OF LOAN (YEARS) | D5: 5 | F5: =F3*D5*D6-D3 -> 9412.19863 | I5: August 6, 1997 Release 1
A6: NO. OF PAYMENTS PER YEAR | D6: 1 | F6: Actual Interest | I6: The total payments are: $ | K6: 18113.52
A7: COMPOUNDING PERIODS/YEAR | D7: 2 | F7: with optional payments | I7: The total interest is: $ | K7: 10291.14
A8: =IF(D6<1," WARNING: PAYMENTS PER YEAR SHOULD BE AT LEAST 1 ",IF(D4<0," Warning: Interest rate must be at least 0","")) ->  | F8: =IF(D5*D6>400,"Can not calculate",SUM(D14:D413)) -> 9412.19 | I8: The total principal is: $ | K8: 7822.38
A9: =IF(D5<1," WARNING: LENGTH IS LESS THAN ONE YEAR: DOUBLE CHECK INPUT",IF(D3<=0," Warning: Loan Amount must be greater than 0","")) ->  | F9: =IF(D5*D6>400,"more than 400 payments","") ->  | H9: =IF(K6<=0,"Please correct your choice of payment numbers ","") -> 
A10: =IF(D7<1," WARNING: NUMBER OF COMPOUNDING PERIODS SHOULD BE AT LEAST ONE PER YEAR","") -> 
B11: Beginning | C11: Scheduled | D11: Interest | E11: Principal | F11: Optional | G11: Closing | I11: Payments | J11: Interest | K11: Principal
A12: Pmt | B12: Balance | C12: Payment | D12: Portion | E12: Portion | F12: Payments | G12: Balance | H12: Pmt | I12: to date | J12: to date | K12: to Date
B13: 120000 | G13: 120000 | H13: 0 | I13: 0 | J13: 0 | K13: 0
A14: 1 | B14: =D3 -> 60000 | C14: =ROUND(IF(B14+D14<$F$3,B14+D14,$F$3),2) -> 13882.44 | D14: =ROUND(((1+(D4/($D$7*100)))^($D$7/$D$6)-1)*B14,2) -> 3037.5 | E14: =C14-D14+F14 -> 10844.94 | F14: 0 | G14: =ROUND(B14-E14,2) -> 49155.06 | H14: =A14 -> 1 | I14: =C14+F14 -> 13882.44 | J14: =D14 -> 3037.5 | K14: =I14-J14 -> 10844.94
A15: =IF(G14=0,"",1+A14) -> 2 | B15: =IF(G14=0,"",ROUND(G14,2)) -> 49155.06 | C15: =IF(G14=0,"",ROUND(IF(B15+D15<$F$3,B15+D15,$F$3),2)) -> 13882.44 | D15: =IF(G14=0,"",ROUND(((1+($D$4/($D$7*100)))^($D$7/$D$6)-1)*B15,2)) -> 2488.47 | E15: =IF(G14=0,"",C15-D15+F15) -> 11393.97 | F15: 0 | G15: =IF(G14=0,"",ROUND(B15-E15,2)) -> 37761.09 | H15: 2 | I15: =IF(G14=0,"",C15+F15+I14) -> 27764.88 | J15: =IF(G14=0,"",J14+D15) -> 5525.97 | K15: =IF(G14=0,"",I15-J15) -> 22238.91
A16: =IF(G15=0,"",1+A15) -> 3 | B16: =IF(G15=0,"",ROUND(G15,2)) -> 37761.09 | C16: 13882.44 | D16: 1911.66 | E16: =IF(G15=0,"",C16-D16+F16) -> 11970.78 | F16: 0 | G16: =IF(G15=0,"",ROUND(B16-E16,2)) -> 25790.31 | H16: 3 | I16: 41647.32 | J16: 7437.63 | K16: 34209.69
A17: 4 | B17: 25790.31 | C17: 13882.44 | D17: 1305.63 | E17: 12576.81 | F17: 0 | G17: 13213.5 | H17: 4 | I17: 55529.76 | J17: 8743.26 | K17: 46786.5
A18: 5 | B18: 13213.5 | C18: 13882.43 | D18: 668.93 | E18: 13213.5 | F18: 0 | G18: 0 | H18: 5 | I18: 69412.19 | J18: 9412.19 | K18: 60000
F19: 0
A20: =IF(G19=0,"",1+A19) ->  | F20: 0
F21: 0
F22: 0
F23: 0
F24: 0
F25: 0
F26: 0
F27: 0
F28: 0
F29: 0
F30: 0
F31: 0
F32: 0
F33: 0
F34: 0
B35: =IF(G34=0,"",ROUND(G34,2)) ->  | F35: 0
F36: 0
F37: 0
F38: 0
F39: 0
F40: 0
F41: 0
F42: 0
A43: =IF(G42=0,"",1+A42) ->  | F43: 0
F44: 0
F45: 0
F46: 0
F47: 0 | I47: =IF(G46=0,"",C47+F47+I46) ->  | J47: =IF(G46=0,"",J46+D47) ->  | K47: =IF(G46=0,"",I47-J47) -> 
F48: 0
F49: 0
F50: 0
F51: 0
F52: 0
F53: 0
F54: 0
F55: 0
F56: 0
F57: 0
F58: 0
F59: 0
F60: 0
F61: 0
F62: 0
F63: 0
F64: 0
F65: 0
F66: 0
F67: 0
F68: 0
F69: 0
F70: 0
F71: 0
F72: 0
F73: 0 | G73: =IF(G72=0,"",ROUND(B73-E73,2)) -> 
F74: 0 | K74: =A74 ->  | L74: =IF(G73=0,"",C74+F74+L73) ->  | M74: =IF(G73=0,"",M73+D74) ->  | N74: =IF(G73=0,"",L74-M74) -> 
F75: 0
F76: 0
F77: 0
F78: 0
C79: =IF(G78=0,"",ROUND(IF(B79+D79<$F$3,B79+D79,$F$3),2)) ->  | D79: =IF(G78=0,"",ROUND(((1+($D$4/($D$7*100)))^($D$7/$D$6)-1)*B79,2)) ->  | F79: 0
A80: =IF(G79=0,"",1+A79) ->  | B80: =IF(G79=0,"",ROUND(G79,2)) ->  | E80: =IF(G79=0,"",C80-D80+F80) ->  | F80: 0 | G80: =IF(G79=0,"",ROUND(B80-E80,2)) -> 
F81: 0
F82: 0
F83: 0
F84: 0
F85: 0
F86: 0
F87: 0
F88: 0
F89: 0
F90: 0
F91: 0
F92: 0
F93: 0
F94: 0
F95: 0
F96: 0
F97: 0
F98: 0
F99: 0
F100: 0
F101: 0
F102: 0
F103: 0
F104: 0
F105: 0
F106: 0
F107: 0
F108: 0
F109: 0
F110: 0
F111: 0
F112: 0
F113: 0
F114: 0
F115: 0
F116: 0
F117: 0
F118: 0
F119: 0
F120: 0
F121: 0
F122: 0
F123: 0
F124: 0
F125: 0
F126: 0
F127: 0
F128: 0
F129: 0
F130: 0
F131: 0
F132: 0
F133: 0
F134: 0
F135: 0
F136: 0
F137: 0
F138: 0 | K138: =A138 ->  | L138: =IF(G137=0,"",C138+F138+L137) ->  | M138: =IF(G137=0,"",M137+D138) ->  | N138: =IF(G137=0,"",L138-M138) -> 
F139: 0
F140: 0
F141: 0
F142: 0
C143: =IF(G142=0,"",ROUND(IF(B143+D143<$F$3,B143+D143,$F$3),2)) ->  | D143: =IF(G142=0,"",ROUND(((1+($D$4/($D$7*100)))^($D$7/$D$6)-1)*B143,2)) ->  | F143: 0
A144: =IF(G143=0,"",1+A143) ->  | B144: =IF(G143=0,"",ROUND(G143,2)) ->  | E144: =IF(G143=0,"",C144-D144+F144) ->  | F144: 0 | G144: =IF(G143=0,"",ROUND(B144-E144,2)) -> 
F145: 0
F146: 0
F147: 0
F148: 0
F149: 0
F150: 0
F151: 0
F152: 0
F153: 0
F154: 0
F155: 0
F156: 0
F157: 0
F158: 0
F159: 0
F160: 0
F161: 0
F162: 0
F163: 0
F164: 0
F165: 0
F166: 0
F167: 0
F168: 0
F169: 0
F170: 0
F171: 0
F172: 0
F173: 0
F174: 0
F175: 0
F176: 0
F177: 0
F178: 0
F179: 0
F180: 0
F181: 0
F182: 0
F183: 0
F184: 0
F185: 0
F186: 0
F187: 0
F188: 0
F189: 0
F190: 0
F191: 0
F192: 0
F193: 0
F194: 0
F195: 0
F196: 0
F197: 0
F198: 0
F199: 0
F200: 0
... 173 more rows

Sheet Lease Comparison
B2: Leasing vs Buying
B3: Lease Option
B4: Cost of Equipment | C4: 120000
B5: Total Lease Payments per Year | C5: 18507
B6: Length of Lease | C6: 5
B7: Total Payments on Lease | C7: =C5*C6 -> 92535 | D7: (A)
B8: Down Payment or Trade | C8: 25000
B9: Total Cash Invested in Lease | C9: =C7+C8 -> 117535 | E9: To read the Leasing Factsheet
B10: Amount Tax Reduced @ 41% tax rate (.41 x line A) | C10: =0.41*C7 -> 37939.35 | E10: click on the link below
B11: Total After Tax Cost of Lease | C11: =C9-C10 -> 79595.65 | E11: http://www.omafra.gov.on.ca/english/busdev/facts/13-059.htm
B12: Purchase Option
B13: Cost of Equipment | C13: 120000 | D13: (B)
B14: Down Payment of Trade | C14: 25000 | D14: (C)
B15: Loan Amount | C15: =C13-C14 -> 95000
B16: Total Loan Payments - 5 years @ 6% | C16: 113280 | D16: (D)
B17: Total Loan Payments per year | C17: 22656
B18: Depreciated Value of equipment at the end of 5 years (42%) | C18: 50000 | D18: (E)
B19: FMV of asset at the end of 4 years | C19: 50000
B20: Amount left to be paid on loan at year 4
B21: Total Cash Investment in Purchase ( C+D-E ) | C21: =C14+C16-C19 -> 88280
B22: Amount of tax reduced @.41 tax rate
B23: Interest ( $16,956 x .41 ) | C23: =(C16-C15)*0.41 -> 7494.8
B24: Depreciation ( B - E x .41 ) | C24: =(C13-C18)*0.41 -> 28700
B25: Recapture on equipment if sold at the end of 4th year | C25: =C19-C18 -> 0
B26: Tax on recapture @ 41% tax rate | C26: =0.41*C25 -> 0
B27: Total After Tax Cost of Purchase | C27: =C21-C23-C24+C26 -> 52085.2
B29: Average Increased Cash Flow per year by Leasing | C29: =C17-C5 -> 4149
B30: Average Cost Saving per year on Purchasing | C30: =(C11-C27)/C6 -> 5502.09
